fUSD/lending_fUSD_20250421
["ID","MTS","AMOUNT","RATE_DAILY","PERIOD"]
[358483741,1745203840477,-500.0,0.00061119,120]
[358483742,1745203840487,-500.0,0.00061123,120]
[358483743,1745203840495,-500.0,0.00061147,120]
[358483744,1745203840504,-500.0,0.00061174,120]
[358483745,1745203840513,-500.0,0.00061201,120]
[358483746,1745203840522,-875.60881307,0.00061226,120]
[358483747,1745203840531,-500.0,0.00061228,120]
[358483748,1745203840540,-1000.0,0.00061228,2]
[358483749,1745203840550,-500.0,0.00061229,120]
[358483750,1745203840559,-500.0,0.00061256,120]
[358483751,1745203840569,-356.49893494,0.00061284,120]
[358483752,1745203840578,-1100.0,0.00061298,120]
[358483753,1745203840587,-173.61327079,0.00061324,120]
[358483754,1745203840596,-165.73,0.00061327,2]
[358483755,1745203840605,-166.67,0.00061472,2]
[358483756,1745203840614,-1100.0,0.00061539,120]
[358483757,1745203840623,-150.0,0.00061557,120]
[358483758,1745203840632,-500.0,0.00061575,120]
[358483759,1745203840641,-700.0,0.00061626,120]
[358483760,1745203840650,-157.87220745,0.00061698,120]
[358483761,1745203840659,-1535.54,0.000618,2]
[358483762,1745203840668,-307.11,0.000618,2]
[358483763,1745203840677,-1542.33,0.000618,2]
[358483764,1745203840686,-308.46,0.000618,2]
[358483765,1745203840695,-1100.0,0.00061817,120]
[358483766,1745203840705,-1100.0,0.00062176,120]
[358483767,1745203840715,-2000.0,0.000622,90]
[358483768,1745203840725,-150.0,0.0006222,120]
[358483769,1745203840735,-178.93418074,0.00062415,12]
[358483770,1745203840746,-700.0,0.00062416,120]
[358483771,1745203840757,-151.0,0.000625,120]
[358483772,1745203840766,-500.0,0.00062575,120]
[358483773,1745203840775,-700.0,0.00062692,120]
[358483774,1745203840783,-700.0,0.00062766,120]
[358483775,1745203840793,-612.92,0.00062821,2]
[358483776,1745203840802,-464.78160279,0.00062887,120]
[358483777,1745203840811,-1100.0,0.00062887,120]
[358483778,1745203840823,-17162.03185085,0.00062888,120]
[358483779,1745203840834,-20375.4114894,0.0006289,4]
[358483780,1745203840844,-18100.0,0.000629,22]
[358483781,1745203840854,-3387.1091,0.00062914,2]
[358483782,1745203840864,-500.0,0.00062914,2]
[358483783,1745203840874,-186.72856281,0.00062914,91]
[358483784,1745203840882,-2042.920338,0.00062966,120]
[358483785,1745203840893,-40750.8229787,0.00062994,4]
[358483786,1745203840901,-500.0,0.00063,120]
[358483787,1745203840911,-469.31530737,0.00063,4]
[358483788,1745203840920,-122252.468936,0.00063004,4]
[358483789,1745203840931,-1596.99217146,0.00063004,5]
[358483790,1745203840941,-672.03124399,0.00063013,120]
[358483791,1745203840950,-500.0,0.00063013,60]
[358483792,1745203840959,-500.0,0.00063013,120]
[358483793,1745203840969,-1000.0,0.00063013,2]
[358483794,1745203841098,-199.66817015,0.00063013,120]
[358483795,1745203841109,-500.0,0.00063013,120]
[358483796,1745203841119,-500.0,0.00063013,120]
[358483797,1745203841129,-501.62396758,0.00063013,2]
[358483798,1745203841138,-590.67732532,0.00063013,120]
[358483799,1745203841147,-516.37593366,0.00063013,120]
[358483800,1745203841157,-500.0,0.00063013,120]
[358483801,1745203841166,-500.0,0.00063013,120]
[358483802,1745203841176,-500.0,0.00063013,120]
[358483803,1745203841185,-500.0,0.00063013,120]
[358483804,1745203841195,-500.0,0.00063013,2]
[358483805,1745203841204,-500.0,0.00063013,120]
[358483806,1745203841213,-533.26390759,0.00063013,120]
[358483807,1745203841222,-500.0,0.00063013,120]
[358483808,1745203841232,-509.11085807,0.00063013,120]
[358483809,1745203841241,-500.0,0.00063013,118]
[358483810,1745203841250,-2000.0,0.00063013,120]
[358483811,1745203841259,-500.0,0.00063013,120]
[358483812,1745203841268,-508.29858572,0.00063013,2]
[358483813,1745203841277,-400.89218566,0.00063013,120]
[358483814,1745203841287,-500.0,0.00063013,120]
[358483815,1745203841297,-500.0,0.00063013,120]
[358483816,1745203841306,-528.7029028,0.00063013,120]
[358483817,1745203841315,-500.0,0.00063013,120]
[358483818,1745203841324,-500.0,0.00063013,120]
[358483819,1745203841334,-677.46,0.00063013,120]
[358483820,1745203841343,-500.0,0.00063013,120]
[358483821,1745203841353,-527.39296394,0.00063013,120]
[358483822,1745203841364,-500.0,0.00063013,120]
[358483823,1745203841373,-500.0,0.00063013,120]
[358483824,1745203841391,-500.0,0.00063013,120]
[358483825,1745203841401,-387.73027184,0.00063014,120]
[358483826,1745203841410,-1000.0,0.00063014,2]
[358483827,1745203841419,-1000.0,0.00063014,2]
[358483828,1745203841428,-1000.0,0.00063014,2]
[358483829,1745203841438,-1000.0,0.00063014,2]
[358483830,1745203841447,-1000.0,0.00063014,2]
[358483831,1745203841456,-1000.0,0.00063014,2]
[358483832,1745203841465,-1000.0,0.00063014,2]
[358483833,1745203841474,-1000.0,0.00063014,2]
[358483834,1745203841483,-1000.0,0.00063014,2]
[358483835,1745203841492,-1000.0,0.00063014,2]
[358483836,1745203841501,-1000.0,0.00063014,2]
[358483837,1745203841510,-1000.0,0.00063014,2]
[358483838,1745203841519,-1000.0,0.00063014,2]
[358483839,1745203841528,-1000.0,0.00063014,2]
[358483840,1745203841537,-1000.0,0.00063014,2]
[358483841,1745203841546,-1000.0,0.00063014,2]
[358483842,1745203841555,-1000.0,0.00063014,2]
[358483843,1745203841564,-1000.0,0.00063014,2]
[358483844,1745203841574,-1000.0,0.00063014,2]
[358483845,1745203841583,-1000.0,0.00063014,2]
[358483846,1745203841592,-1000.0,0.00063014,2]
[358483847,1745203841601,-1000.0,0.00063014,2]
[358483848,1745203841610,-1000.0,0.00063014,2]
[358483849,1745203841619,-1000.0,0.00063014,2]
[358483850,1745203841628,-1000.0,0.00063014,2]
[358483851,1745203841636,-1000.0,0.00063014,2]
[358483852,1745203841645,-1000.0,0.00063014,2]
[358483853,1745203841654,-1000.0,0.00063014,2]
[358483854,1745203841663,-1000.0,0.00063014,2]
[358483855,1745203841672,-1000.0,0.00063014,2]
[358483856,1745203841681,-1000.0,0.00063014,2]
[358483857,1745203841690,-1000.0,0.00063014,2]
[358483858,1745203841699,-1000.0,0.00063014,2]
[358483859,1745203841708,-1000.0,0.00063014,2]
[358483860,1745203841717,-1000.0,0.00063014,2]
[358483861,1745203841726,-1000.0,0.00063014,2]
[358483862,1745203841735,-1000.0,0.00063014,2]
[358483863,1745203841744,-1000.0,0.00063014,2]
[358483864,1745203841752,-1000.0,0.00063014,2]
[358483865,1745203841761,-1000.0,0.00063014,2]
[358483866,1745203841770,-1000.0,0.00063014,2]
[358483867,1745203841779,-1000.0,0.00063014,2]
[358483868,1745203841789,-1000.0,0.00063014,2]
[358483869,1745203841798,-1000.0,0.00063014,2]
[358483870,1745203841807,-1000.0,0.00063014,2]
[358483871,1745203841816,-1000.0,0.00063014,2]
[358483872,1745203841826,-1000.0,0.00063014,2]
[358483873,1745203841838,-1000.0,0.00063014,2]
[358483874,1745203841848,-1000.0,0.00063014,2]
[358483875,1745203841859,-1000.0,0.00063014,2]
[358483876,1745203841868,-1000.0,0.00063014,2]
[358483877,1745203841878,-1000.0,0.00063014,2]
[358483878,1745203841888,-1000.0,0.00063014,2]
[358483879,1745203841897,-1000.0,0.00063014,2]
[358483880,1745203841906,-1000.0,0.00063014,2]
[358483881,1745203841915,-1000.0,0.00063014,2]
[358483882,1745203841926,-1000.0,0.00063014,2]
[358483883,1745203841935,-1000.0,0.00063014,2]
[358483884,1745203841944,-1000.0,0.00063014,2]
[358483885,1745203841954,-1000.0,0.00063014,2]
[358483886,1745203841964,-1000.0,0.00063014,2]
[358483887,1745203841973,-1000.0,0.00063014,2]
[358483888,1745203841983,-1000.0,0.00063014,2]
[358483889,1745203841995,-1000.0,0.00063014,2]
[358483890,1745203842005,-1000.0,0.00063014,2]
[358483891,1745203842015,-1000.0,0.00063014,2]
[358483892,1745203842024,-1000.0,0.00063014,2]
[358483893,1745203842034,-1000.0,0.00063014,2]
[358483894,1745203842044,-1000.0,0.00063014,2]
[358483895,1745203842053,-1000.0,0.00063014,2]
[358483896,1745203842063,-1000.0,0.00063014,2]
[358483897,1745203842072,-1000.0,0.00063014,2]
[358483898,1745203842082,-1000.0,0.00063014,2]
[358483899,1745203842091,-1000.0,0.00063014,2]
[358483900,1745203842101,-1000.0,0.00063014,2]
[358483901,1745203842110,-1000.0,0.00063014,2]
[358483903,1745203842119,-1000.0,0.00063014,2]
[358483904,1745203842130,-1000.0,0.00063014,2]
[358483905,1745203842139,-1000.0,0.00063014,2]
[358483906,1745203842148,-1000.0,0.00063014,2]
[358483907,1745203842157,-917.0,0.00063014,2]
[358483908,1745203842167,-291.882179,0.00063014,120]
[358483909,1745203842176,-151.0,0.00063014,30]
[358483910,1745203842186,-164.686311,0.00063014,120]
[358483911,1745203842195,-160.493781,0.00063014,120]
[358483912,1745203842205,-160.493781,0.00063014,120]
[358483913,1745203842215,-151.0,0.00063014,120]
[358483914,1745203842225,-151.0,0.00063014,120]
[358483916,1745203842235,-151.0,0.00063014,120]
[358483918,1745203842244,-151.0,0.00063014,120]
[358483919,1745203842253,-1390.60354903,0.00063014,120]
[358483920,1745203842262,-1390.60354903,0.00063014,120]
[358483921,1745203842271,-1390.60354903,0.00063014,120]
[358483923,1745203842281,-1390.60354903,0.00063014,120]
[358483924,1745203842290,-1390.60354903,0.00063014,120]
[358483925,1745203842299,-1390.60354903,0.00063014,120]
[358483926,1745203842308,-1390.60354903,0.00063014,120]
[358483928,1745203842317,-1390.60354903,0.00063014,120]
[358483929,1745203842326,-1390.60354903,0.00063014,120]
[358483930,1745203842335,-1390.60354903,0.00063014,120]
[358483931,1745203842344,-1390.60354903,0.00063014,120]
[358483932,1745203842353,-1390.60354903,0.00063014,120]
[358483933,1745203842362,-1390.60354903,0.00063014,120]
[358483934,1745203842372,-1390.60354903,0.00063014,120]
[358483936,1745203842390,-1390.60354903,0.00063014,120]
[358483937,1745203842399,-1390.60354903,0.00063014,120]
[358483939,1745203842408,-1390.60354903,0.00063014,120]
[358483940,1745203842417,-1390.60354903,0.00063014,120]
[358483941,1745203842426,-1390.60354903,0.00063014,120]
[358483942,1745203842435,-1390.60354903,0.00063014,120]
[358483943,1745203842444,-1390.60354903,0.00063014,120]
[358483944,1745203842453,-1390.60354903,0.00063014,120]
[358483945,1745203842463,-1390.60354903,0.00063014,120]
[358483946,1745203842472,-1390.60354903,0.00063014,120]
[358483947,1745203842481,-1390.60354903,0.00063014,120]
[358483948,1745203842491,-151.0,0.00063014,120]
[358483949,1745203842500,-1390.60354903,0.00063014,120]
[358483950,1745203842509,-1390.60354903,0.00063014,120]
[358483951,1745203842519,-1390.60354903,0.00063014,120]
[358483952,1745203842528,-1390.60354903,0.00063014,120]
[358483953,1745203842537,-1390.60354903,0.00063014,120]
[358483954,1745203842547,-1390.60354903,0.00063014,120]
[358483955,1745203842556,-1390.60354903,0.00063014,120]
[358483956,1745203842565,-1390.60354903,0.00063014,120]
[358483957,1745203842575,-1390.60354903,0.00063014,120]
[358483958,1745203842584,-1390.60354903,0.00063014,120]
[358483959,1745203842594,-1390.60354903,0.00063014,120]
[358483960,1745203842604,-1390.60354903,0.00063014,120]
[358483961,1745203842613,-1390.60354903,0.00063014,120]
[358483962,1745203842623,-1390.60354903,0.00063014,120]
[358483963,1745203842632,-1390.60354903,0.00063014,120]
[358483964,1745203842642,-1390.60354903,0.00063014,120]
[358483965,1745203842651,-1390.60354903,0.00063014,120]
[358483966,1745203842661,-1390.60354903,0.00063014,120]
[358483967,1745203842670,-1390.60354903,0.00063014,120]
[358483968,1745203842679,-1390.60354903,0.00063014,120]
[358483969,1745203842688,-1390.60354903,0.00063014,120]
[358483970,1745203842698,-1390.60354903,0.00063014,120]
[358483971,1745203842708,-1390.60354903,0.00063014,120]
[358483972,1745203842717,-1390.60354903,0.00063014,120]
[358483973,1745203842726,-1390.60354903,0.00063014,120]
[358483974,1745203842736,-1390.60354903,0.00063014,120]
[358483975,1745203842745,-151.0,0.00063229,120]
[358483976,1745203842754,-151.0,0.00063229,120]
[358483977,1745203842764,-151.0,0.00063229,120]
[358483978,1745203842772,-1535.54,0.000634,2]
[358483979,1745203842782,-307.11,0.000634,2]
[358483980,1745203842791,-1542.33,0.000634,2]
[358483981,1745203842800,-308.46,0.000634,2]
[358483982,1745203842810,-500.0,0.00063561,120]
[358483983,1745203842819,-500.0,0.00063561,120]
[358483984,1745203842828,-500.0,0.00063561,120]
[358483985,1745203842837,-500.0,0.00063561,120]
[358483986,1745203842847,-569.27430446,0.00063561,120]
[358483988,1745203842856,-500.0,0.00063561,120]
[358483989,1745203842866,-500.0,0.00063561,2]
[358483990,1745203842875,-500.0,0.00063561,120]
[358483992,1745203842884,-500.0,0.00063561,120]
[358483993,1745203842894,-500.0,0.00063561,118]
[358483994,1745203842903,-2029.99959765,0.00063561,120]
[358483995,1745203842912,-500.0,0.00063561,120]
[358483996,1745203842921,-500.0,0.00063561,120]
[358483997,1745203842931,-500.0,0.00063561,120]
[358483998,1745203842941,-500.0,0.00063561,120]
[358483999,1745203842950,-500.0,0.00063561,120]
[358484000,1745203842958,-500.0,0.00063561,120]
[358484001,1745203842967,-677.46,0.00063561,120]
[358484002,1745203842977,-500.0,0.00063561,120]
[358484003,1745203842988,-500.0,0.00063561,120]
[358484004,1745203842999,-573.3393774,0.00063561,120]
[358484005,1745203843008,-500.0,0.00063575,120]
[358484006,1745203843018,-1000.39253289,0.00063655,15]
[358484007,1745203843027,-1099.981,0.00063716,120]
[358484008,1745203843038,-792.09711407,0.00063731,120]
[358484009,1745203843047,-700.0,0.0006392,120]
[358484010,1745203843056,-169.0,0.00064,120]
[358484011,1745203843067,-1009.58,0.00064,120]
[358484012,1745203843076,-500.0,0.00064109,120]
[358484013,1745203843085,-537.16216577,0.00064109,120]
[358484014,1745203843094,-500.0,0.00064109,120]
[358484015,1745203843104,-571.91655079,0.00064109,120]
[358484016,1745203843113,-436.4096124,0.00064109,120]
[358484017,1745203843123,-500.57626244,0.00064109,2]
[358484018,1745203843133,-500.0,0.00064109,120]
[358484019,1745203843142,-500.0,0.00064109,120]
[358484020,1745203843151,-500.0,0.00064109,118]
[358484021,1745203843161,-571.61021908,0.00064109,120]
[358484022,1745203843171,-523.96229492,0.00064109,120]
[358484023,1745203843181,-541.34943903,0.00064109,120]
[358484024,1745203843191,-500.0,0.00064109,120]
[358484025,1745203843200,-500.0,0.00064109,120]
[358484026,1745203843210,-677.46,0.00064109,120]
[358484027,1745203843218,-500.0,0.00064109,120]
[358484028,1745203843227,-500.0,0.00064109,120]
[358484029,1745203843237,-798.49608573,0.00064211,5]
[358484030,1745203843247,-152.22899,0.00064221,120]
[358484031,1745203843256,-151.0,0.00064221,120]
[358484032,1745203843265,-153.776174,0.00064221,120]
[358484033,1745203843275,-151.0,0.00064221,120]
[358484034,1745203843286,-151.0,0.00064221,120]
[358484035,1745203843294,-291.627104,0.00064221,120]
[358484036,1745203843304,-218.817142,0.00064386,30]
[358484037,1745203843312,-505.948551,0.00064566,120]
[358484038,1745203843322,-2000.0,0.00064566,120]
[358484039,1745203843332,-500.0,0.00064575,120]
[358484040,1745203843342,-1535.54,0.000646,2]
[358484041,1745203843351,-307.11,0.000646,2]
[358484042,1745203843360,-1542.33,0.000646,2]
[358484043,1745203843369,-308.46,0.000646,2]
[358484044,1745203843378,-500.0,0.00064657,120]
[358484045,1745203843387,-500.0,0.00064657,120]
[358484046,1745203843396,-554.59674322,0.00064657,120]
[358484047,1745203843406,-500.0,0.00064657,120]
[358484048,1745203843415,-500.0,0.00064657,118]
[358484049,1745203843424,-500.0,0.00064657,120]
[358484050,1745203843434,-500.0,0.00064657,120]
[358484051,1745203843443,-677.46,0.00064657,120]
[358484052,1745203843452,-500.0,0.00064657,120]
[358484053,1745203843462,-2958.0,0.00064777,20]
[358484054,1745203843471,-2000.0,0.000649,120]
[358484055,1745203843481,-1100.0,0.00064908,120]
[358484056,1745203843490,-2246.84018034,0.0006498,2]
[358484057,1745203843499,-700.0,0.00064983,120]
[358484058,1745203843509,-20375.4114894,0.0006499,5]
[358484059,1745203843518,-151.0,0.0006499,120]
[358484060,1745203843528,-1031.0,0.00065,120]
[358484061,1745203843537,-500.0,0.00065,120]
[358484062,1745203843547,-365.61306793,0.00065,120]
[358484063,1745203843556,-155.462647,0.00065063,60]
[358484064,1745203843566,-154.311,0.00065063,60]
[358484065,1745203843575,-4811.52687206,0.00065085,30]
[358484066,1745203843585,-612.92,0.00065085,2]
[358484067,1745203843594,-150.0,0.00065101,120]
[358484068,1745203843603,-700.0,0.0006519,120]
[358484069,1745203843612,-500.0,0.00065205,120]
[358484070,1745203843621,-500.0,0.00065205,120]
[358484071,1745203843630,-311.73434006,0.00065205,120]
[358484072,1745203843639,-294.60014665,0.00065205,118]
[358484073,1745203843649,-500.0,0.00065205,120]
[358484074,1745203843658,-192.61273504,0.00065205,120]
[358484075,1745203843667,-677.46,0.00065205,120]
[358484076,1745203843675,-500.0,0.00065205,120]
[358484077,1745203843685,-1100.0,0.00065231,120]
[358484078,1745203843694,-1560.73107099,0.00065263,120]
[358484079,1745203843703,-700.0,0.00065322,120]
[358484080,1745203843819,-700.0,0.00065367,120]
[358484081,1745203843829,-151.0,0.000654,120]
[358484082,1745203843839,-1000.0,0.00065479,120]
[358484083,1745203843849,-183.042111,0.00065498,120]
[358484084,1745203843858,-1500.0,0.000655,120]
[358484085,1745203843867,-1039.79726149,0.000655,120]
[358484086,1745203843876,-166.75293362,0.00065553,46]
[358484087,1745203843885,-798.49608573,0.0006556,5]
[358484088,1745203843895,-20375.4114894,0.0006557,5]
[358484089,1745203843904,-798.49608573,0.0006557,5]
[358484090,1745203843913,-17296.607,0.0006558,2]
[358484091,1745203843922,-20375.4114894,0.0006559,5]
[358484092,1745203843931,-798.49608573,0.0006559,5]
[358484093,1745203843940,-500.0,0.00065599,60]
[358484094,1745203843950,-2237.74,0.000656,120]
[358484095,1745203843959,-2237.74,0.000656,120]
[358484096,1745203843968,-2237.74,0.000656,120]
[358484097,1745203843978,-2237.74,0.000656,120]
[358484098,1745203843989,-2237.74,0.000656,120]
[358484099,1745203844000,-2237.74,0.000656,120]
[358484100,1745203844010,-2237.89145875,0.000656,120]
[358484101,1745203844019,-649.0,0.000656,30]
[358484102,1745203844029,-2237.74,0.000656,120]
[358484103,1745203844038,-2237.74,0.000656,120]
[358484104,1745203844047,-2237.74,0.000656,120]
[358484105,1745203844057,-2237.74,0.000656,120]
[358484106,1745203844068,-2237.74,0.000656,120]
[358484107,1745203844079,-2237.74,0.000656,120]
[358484108,1745203844089,-2237.74,0.000656,120]
[358484109,1745203844098,-2237.74,0.000656,120]
[358484110,1745203844107,-2237.74,0.000656,120]
[358484111,1745203844116,-2237.74,0.000656,120]
[358484112,1745203844125,-2237.74,0.000656,120]
[358484113,1745203844135,-2237.74,0.000656,120]
[358484114,1745203844144,-2237.74,0.000656,120]
[358484115,1745203844153,-2237.74,0.000656,120]
[358484116,1745203844162,-2237.74,0.000656,120]
[358484117,1745203844171,-2237.74,0.000656,120]
[358484118,1745203844180,-2237.74,0.000656,120]
[358484119,1745203844189,-331.876103,0.000656,62]
[358484120,1745203844199,-20375.4114894,0.00065603,5]
[358484121,1745203844208,-798.49608573,0.00065603,5]
[358484122,1745203844218,-151.0,0.00065604,120]
[358484123,1745203844227,-164.811833,0.00065604,120]
[358484124,1745203844236,-164.811833,0.00065604,120]
[358484125,1745203844246,-151.0,0.00065604,120]
[358484126,1745203844255,-573.61179673,0.00065612,60]
[358484127,1745203844264,-500.0,0.00065612,60]
[358484128,1745203844273,-151.0,0.00065613,30]
[358484129,1745203844283,-160.493781,0.00065613,120]
[358484130,1745203844292,-160.493781,0.00065613,120]
[358484131,1745203844301,-36170.9236,0.00065613,2]
[358484132,1745203844310,-798.49608573,0.00065622,5]
[358484133,1745203844319,-559.41776247,0.00065632,120]
[358484134,1745203844329,-1000.0,0.00065632,2]
[358484135,1745203844338,-40750.8229787,0.00065633,5]
[358484136,1745203844348,-798.49608573,0.00065633,5]
[358484137,1745203844357,-151.0,0.00065633,120]
[358484138,1745203844366,-798.49608573,0.00065633,5]
[358484139,1745203844375,-500.0,0.00065642,60]
[358484140,1745203844385,-61126.2344681,0.00065643,5]
[358484141,1745203844394,-1596.99217146,0.00065643,5]
[358484142,1745203844404,-188.651661,0.00065643,120]
[358484143,1745203844414,-158.004107,0.00065643,120]
[358484144,1745203844424,-151.0,0.00065643,120]
[358484145,1745203844434,-200.0,0.00065643,120]
[358484146,1745203844443,-207.4,0.00065643,120]
[358484147,1745203844453,-252.45710336,0.00065643,120]
[358484148,1745203844462,-215.0738,0.00065643,120]
[358484149,1745203844471,-223.0315306,0.00065643,120]
[358484150,1745203844480,-231.28369723,0.00065643,120]
[358484151,1745203844490,-239.84119403,0.00065643,120]
[358484152,1745203844499,-248.71531821,0.00065643,120]
[358484153,1745203844508,-257.91778498,0.00065643,120]
[358484154,1745203844517,-267.46074303,0.00065643,120]
[358484155,1745203844526,-277.35679052,0.00065643,120]
[358484156,1745203844535,-287.61899177,0.00065643,120]
[358484157,1745203844544,-298.26089446,0.00065643,120]
[358484158,1745203844553,-309.29654756,0.00065643,120]
[358484159,1745203844562,-320.74051982,0.00065643,120]
[358484160,1745203844571,-332.60791905,0.00065643,120]
[358484161,1745203844581,-344.91441206,0.00065643,120]
[358484162,1745203844590,-357.6762453,0.00065643,120]
[358484163,1745203844599,-370.91026638,0.00065643,120]
[358484164,1745203844608,-384.63394623,0.00065643,120]
[358484165,1745203844618,-454.33573021,0.00065643,120]
[358484166,1745203844627,-151.0,0.00065643,120]
[358484167,1745203844636,-151.0,0.00065643,120]
[358484168,1745203844646,-151.0,0.00065643,120]
[358484169,1745203844656,-500.0,0.00065643,120]
[358484170,1745203844665,-500.0,0.00065643,120]
[358484171,1745203844674,-500.0,0.00065643,120]
[358484172,1745203844684,-500.0,0.00065643,120]
[358484173,1745203844694,-2888.3029,0.00065643,2]
[358484174,1745203844703,-500.0,0.00065652,60]
[358484175,1745203844713,-88888.0,0.00065653,120]
[358484176,1745203844724,-151.0,0.00065653,120]
[358484177,1745203844733,-151.0,0.00065653,120]
[358484178,1745203844742,-204.876667,0.00065653,120]
[358484179,1745203844752,-164.811833,0.00065653,120]
[358484180,1745203844765,-164.811833,0.00065653,120]
[358484181,1745203844774,-151.0,0.00065653,120]
[358484182,1745203844784,-200.0,0.000657,120]
[358484183,1745203844794,-700.0,0.00065702,120]
[358484184,1745203844803,-798.49608573,0.00065712,5]
[358484185,1745203844812,-1000.0,0.00065712,2]
[358484186,1745203844821,-859.93081223,0.00065719,120]
[358484187,1745203844830,-20375.4114894,0.00065723,5]
[358484188,1745203844839,-798.49608573,0.00065723,5]
[358484189,1745203844848,-160.493781,0.00065725,120]
[358484190,1745203844857,-160.493781,0.00065725,120]
[358484191,1745203844866,-300.0,0.00065732,30]
[358484192,1745203844875,-300.0,0.00065732,30]
[358484193,1745203844884,-1168.82294152,0.00065732,120]
[358484194,1745203844894,-798.49608573,0.00065732,5]
[358484195,1745203844903,-81501.6459574,0.00065733,5]
[358484196,1745203844913,-2395.48825719,0.00065733,5]
[358484197,1745203844923,-154.558485,0.00065733,120]
[358484198,1745203844934,-154.902933,0.00065733,120]
[358484199,1745203844943,-179.932788,0.00065733,120]
[358484200,1745203844952,-179.932788,0.00065733,120]
[358484201,1745203844961,-151.0,0.00065733,120]
[358484202,1745203844971,-151.0,0.00065733,120]
[358484203,1745203844980,-1154.68789898,0.00065742,120]
[358484204,1745203844993,-164.811833,0.00065743,120]
[358484205,1745203845002,-164.811833,0.00065743,120]
[358484206,1745203845012,-151.0,0.00065743,120]
[358484207,1745203845022,-186.83434,0.00065743,120]
[358484208,1745203845031,-151.0,0.00065743,120]
[358484209,1745203845040,-151.0,0.00065743,120]
[358484210,1745203845049,-160.493781,0.00065743,120]
[358484211,1745203845059,-160.493781,0.00065743,120]
[358484212,1745203845070,-152.800737,0.00065744,120]
[358484213,1745203845080,-160.071736,0.00065744,120]
[358484214,1745203845089,-155.061697,0.00065744,120]
[358484215,1745203845098,-315.48747461,0.00065752,30]
[358484216,1745203845107,-1154.68789898,0.00065752,120]
[358484217,1745203845117,-1000.0,0.00065752,2]
[358484218,1745203845126,-1000.0,0.00065752,2]
[358484219,1745203845135,-1000.0,0.00065752,2]
[358484220,1745203845145,-150.0,0.00065752,120]
[358484221,1745203845156,-150.0,0.00065752,120]
[358484222,1745203845166,-131163.65599266,0.00065753,2]
[358484223,1745203845175,-2222.204876,0.00065753,120]
[358484224,1745203845185,-320.45451,0.00065753,120]
[358484225,1745203845194,-500.0,0.00065753,120]
[358484226,1745203845204,-500.0,0.00065753,120]
[358484227,1745203845214,-214.39935321,0.00065753,120]
[358484229,1745203845223,-500.0,0.00065753,120]
[358484230,1745203845233,-517.81460755,0.00065753,120]
[358484232,1745203845242,-502.60956591,0.00065753,120]
[358484234,1745203845251,-500.0,0.00065753,120]
[358484236,1745203845259,-500.0,0.00065753,120]
[358484238,1745203845268,-500.0,0.00065753,120]
[358484239,1745203845278,-529.79302844,0.00065753,120]
[358484240,1745203845287,-553.98824571,0.00065753,120]
[358484241,1745203845296,-500.0,0.00065753,120]
[358484242,1745203845306,-1000.0,0.00065753,120]
[358484243,1745203845315,-500.0,0.00065753,120]
[358484244,1745203845325,-500.0,0.00065753,120]
[358484245,1745203845334,-500.0,0.00065753,120]
[358484246,1745203845344,-500.0,0.00065753,120]
[358484247,1745203845353,-500.0,0.00065753,120]
[358484248,1745203845363,-502.30352225,0.00065753,120]
[358484249,1745203845372,-584.11000833,0.00065753,120]
[358484250,1745203845381,-500.0,0.00065753,120]
[358484251,1745203845390,-500.0,0.00065753,120]
[358484252,1745203845399,-500.0,0.00065753,120]
[358484253,1745203845409,-500.0,0.00065753,120]
[358484254,1745203845418,-500.0,0.00065753,120]